bitfinex/quotes_BTCUSD_20251217
["timestamp","ask_amount","ask_price","bid_price","bid_amount"]
[1766008795118,0.0907,86153.0,86110.0,0.01489499]
[1766008795119,0.63202209,86153.0,86137.0,0.013895]
[1766008795319,0.0907,86152.0,86138.0,0.3561]
[1766008795518,0.0907,86149.0,86144.0,0.001]
[1766008795723,0.0907,86149.0,86138.0,0.3561]
[1766008795921,0.0907,86149.0,86143.0,0.00025619]
[1766008796372,0.0907,86149.0,86123.0,0.013895]
[1766008796373,0.0907,86149.0,86103.0,0.3561]
[1766008796374,0.01160846,86144.0,86103.0,0.3561]
[1766008796596,0.0907,86129.0,86111.0,0.3561]
[1766008796756,0.0907,86129.0,86111.0,0.35771287]
[1766008796976,0.01836,86134.0,86111.0,0.35771287]
[1766008796977,0.01836,86134.0,86112.0,0.34499]
[1766008797176,0.01836,86135.0,86114.0,0.34499]
[1766008797375,0.01836,86135.0,86114.0,0.34660287]
[1766008797923,0.02503509,86148.0,86116.0,0.36226224]
[1766008797924,0.01836,86140.0,86116.0,0.36226224]
[1766008798110,0.01836,86148.0,86132.0,0.346185]
[1766008798330,0.14165,86151.0,86132.0,0.34779787]
[1766008798558,0.14165,86149.0,86132.0,0.34779787]
[1766008798762,0.16668612,86149.0,86132.0,0.34779787]
[1766008799168,0.23235,86148.0,86132.0,0.34779787]
[1766008799373,0.0907,86148.0,86132.0,0.00161287]
[1766008799576,0.14165,86148.0,86132.0,0.00161287]
[1766008799916,0.11573612,86149.0,86133.0,0.3561]
[1766008800120,0.20035749,86163.0,86133.0,0.3561]
[1766008800121,0.0250438,86159.0,86133.0,0.35771287]
[1766008800326,0.03130435,86167.0,86135.0,0.3561]
[1766008800327,0.23235,86161.0,86135.0,0.3561]
[1766008800562,0.14165,86148.0,86136.0,0.01836]
[1766008801027,0.0907,86149.0,86136.0,0.01836]
[1766008801028,0.14165,86143.0,86136.0,0.01836]
[1766008801665,0.14165,86143.0,86136.0,0.01936]
[1766008801861,0.0907,86149.0,86135.0,0.00161287]
[1766008801862,0.14165,86139.0,86135.0,0.00161287]
[1766008802035,0.10230779,86149.0,86128.0,0.01836]
[1766008802036,0.0116082,86146.0,86128.0,0.01836]
[1766008802284,0.14165,86142.0,86128.0,0.01884046]
[1766008802490,0.14165,86142.0,86128.0,0.37446]
[1766008802688,0.14165,86140.0,86128.0,0.01836]
[1766008805783,0.14165,86140.0,86111.0,0.24387118]
[1766008805784,0.49972,86137.0,86113.0,0.3561]
[1766008806010,0.04086043,86148.0,86113.0,0.3561]
[1766008806011,0.14165,86146.0,86125.0,0.3561]
[1766008806209,0.1199525,86148.0,86127.0,0.3561]
[1766008806409,0.1199525,86148.0,86127.0,0.35771287]
[1766008807717,0.2616025,86148.0,86135.0,0.00025622]
[1766008810035,0.2616025,86148.0,86135.0,0.00125622]
[1766008811998,0.2616025,86148.0,86135.0,0.00286909]
[1766008816279,0.0292525,86148.0,86138.0,0.38377]
[1766008816585,0.00011245,86149.0,86138.0,0.38538287]
[1766008816786,0.02960535,86149.0,86138.0,0.38538287]
[1766008817015,0.00011245,86149.0,86138.0,0.38538287]
[1766008820290,0.00011245,86149.0,86138.0,0.38638287]
[1766008821528,0.09081245,86149.0,86138.0,0.38638287]
[1766008821744,0.15031,86146.0,86138.0,0.00261287]
[1766008821969,0.15031,86145.0,86138.0,0.00261287]
[1766008822177,0.35273,86145.0,86138.0,0.00261287]
[1766008822398,0.15031,86144.0,86138.0,0.00261287]
[1766008822608,0.50304,86144.0,86138.0,0.00161287]
[1766008823003,0.15031,86144.0,86138.0,0.00161287]
[1766008823657,0.00011245,86149.0,86138.0,0.00161287]
[1766008823826,0.09081245,86149.0,86139.0,0.38377]
[1766008826299,0.11591018,86149.0,86139.0,0.38377]
[1766008826506,0.02521018,86149.0,86141.0,0.38377]
[1766008826709,0.00011245,86149.0,86141.0,0.38377]
[1766008829549,0.00011245,86149.0,86141.0,0.38477]
[1766008830175,0.00011245,86149.0,86141.0,0.38377]
[1766008830657,0.00011245,86149.0,86141.0,0.38577]
[1766008830855,2.45e-06,86149.0,86141.0,0.42775941]
[1766008831067,0.03129677,86159.0,86141.0,0.42775941]
[1766008831068,0.0907,86159.0,86149.0,0.38377]
[1766008831266,0.12019528,86159.0,86149.0,0.38377]
[1766008831465,0.02949528,86159.0,86149.0,0.38538287]
[1766008831890,0.0907,86160.0,86149.0,0.38538287]
[1766008831891,0.87300462,86160.0,86149.0,0.00161287]
[1766008832088,0.0907,86157.0,86149.0,0.00161287]
[1766008832381,0.24101,86155.0,86149.0,0.00161287]
[1766008832537,0.59374,86155.0,86149.0,0.00161287]
[1766008833686,0.59374,86155.0,86149.0,0.00261287]
[1766008834668,0.59374,86155.0,86149.0,0.00161287]
[1766008835295,0.66097876,86160.0,86149.0,0.00261287]
[1766008835296,0.02898414,86160.0,86149.0,0.00261287]
[1766008835455,0.25922511,86161.0,86149.0,0.00161287]
[1766008835665,0.50304,86160.0,86149.0,0.00161287]
[1766008835864,0.50304,86160.0,86149.0,0.00261287]
[1766008836103,0.50304,86160.0,86149.0,0.00161287]
[1766008838177,0.04758517,86161.0,86150.0,0.38377]
[1766008838372,0.0907,86158.0,86149.0,0.00161287]
[1766008838612,0.24101,86157.0,86149.0,0.00161287]
[1766008839944,0.04758517,86161.0,86150.0,0.38377]
[1766008840923,0.0907,86160.0,86150.0,0.38377]
[1766008841921,0.0907,86160.0,86150.0,0.42230829]
[1766008842316,0.0907,86160.0,86149.0,0.00161287]
[1766008842533,0.0907,86160.0,86150.0,0.001]
[1766008842534,0.0907,86159.0,86150.0,0.001]
[1766008842699,0.0907,86159.0,86149.0,0.00161287]
[1766008842700,0.13435,86157.0,86149.0,0.00161287]
[1766008843066,0.13435,86157.0,86150.0,0.002]
[1766008843478,0.13435,86156.0,86150.0,0.002]
[1766008844298,0.13435,86156.0,86149.0,0.00161287]
[1766008844705,0.13435,86156.0,86150.0,0.001]
[1766008844907,0.13435,86156.0,86149.0,0.00161287]
[1766008844908,0.13435,86152.0,86149.0,0.00161287]
[1766008845283,0.02509018,86158.0,86151.0,0.37996]
[1766008845483,0.21962941,86168.0,86149.0,0.00161287]
[1766008845484,0.0907,86160.0,86149.0,0.00161287]
[1766008845749,0.13435,86159.0,86149.0,0.00161287]
[1766008845929,0.13435,86159.0,86150.0,0.001]
[1766008845930,0.4879,86159.0,86150.0,0.001]
[1766008846127,0.13435,86158.0,86150.0,0.001]
[1766008846331,0.13435,86158.0,86149.0,0.00161287]
[1766008847751,0.4879,86158.0,86149.0,0.00161287]
[1766008847956,0.4879,86157.0,86149.0,0.00161287]
[1766008848187,0.4879,86157.0,86149.0,0.00261287]
[1766008848388,0.13435,86157.0,86149.0,0.00161287]
[1766008848735,0.13435,86157.0,86149.0,0.00261287]
[1766008848995,0.13435,86157.0,86149.0,0.00161287]
[1766008849348,0.13435,86157.0,86149.0,0.00261287]
[1766008849911,0.4879,86156.0,86149.0,0.00261287]
[1766008850451,0.4879,86156.0,86149.0,0.00161287]
[1766008850652,0.4879,86156.0,86149.0,0.00261287]
[1766008851098,0.4879,86156.0,86149.0,0.00161287]
[1766008851273,0.4879,86156.0,86149.0,0.00261287]
[1766008852151,0.4879,86156.0,86149.0,0.00161287]
[1766008852511,5.222e-05,86160.0,86149.0,0.00261287]
[1766008852891,0.0907,86159.0,86149.0,0.00261287]
[1766008853093,0.25014906,86159.0,86149.0,0.00261287]
[1766008853365,0.60369906,86159.0,86149.0,0.00261287]
[1766008853509,0.02509906,86158.0,86149.0,0.00161287]
[1766008853918,0.15944906,86158.0,86149.0,0.00161287]
[1766008854121,0.51299906,86158.0,86149.0,0.00261287]
[1766008854319,0.51299906,86158.0,86149.0,0.00161287]
[1766008854526,0.13435,86156.0,86149.0,0.00161287]
[1766008854732,0.4879,86156.0,86149.0,0.00161287]
[1766008856824,0.4879,86156.0,86149.0,0.00261287]
[1766008857641,0.13435,86156.0,86149.0,0.00261287]
[1766008859983,0.15256345,86156.0,86149.0,0.00261287]
[1766008860563,0.15256345,86156.0,86149.0,0.00161287]
[1766008860945,0.15256345,86156.0,86149.0,0.00261287]
[1766008861150,0.15256345,86156.0,86149.0,0.00161287]
[1766008861570,0.15256345,86156.0,86149.0,0.00261287]
[1766008861770,0.15256345,86156.0,86144.0,0.37883399]
[1766008862982,0.01821345,86156.0,86144.0,0.37883399]
[1766008863768,0.01821345,86156.0,86149.0,0.001]
[1766008863961,0.01821345,86156.0,86144.0,0.37883399]
[1766008864189,0.01821345,86156.0,86140.0,0.032255]
[1766008864190,3.45e-06,86156.0,86146.0,0.37996]
[1766008864394,5.222e-05,86160.0,86146.0,0.37996]
[1766008865078,5.222e-05,86160.0,86149.0,0.37996]
[1766008865699,0.00166509,86160.0,86149.0,0.37996]
[1766008869206,0.00079456,86160.0,86149.0,0.38031403]
[1766008869415,0.00079456,86160.0,86150.0,0.04214229]
[1766008870436,0.00079456,86160.0,86151.0,0.34323]
[1766008874052,4.56e-06,86160.0,86152.0,0.35968]
[1766008875406,4.56e-06,86160.0,86140.0,0.01836]
[1766008875407,0.01160671,86157.0,86140.0,0.01836]
[1766008875552,0.13984,86152.0,86140.0,0.01836]
[1766008875753,0.37449,86149.0,86140.0,0.01836]
[1766008875958,0.13984,86148.0,86140.0,0.01836]
[1766008879832,0.37449,86149.0,86140.0,0.01836]
[1766008879833,0.29794334,86149.0,86140.0,0.01836]
[1766008880676,0.29794334,86149.0,86135.0,0.00025622]
[1766008880677,0.02979433,86148.0,86135.0,0.00025622]
[1766008880849,0.02979433,86148.0,86137.0,0.013895]
[1766008881212,0.0907,86149.0,86137.0,0.013895]
[1766008881768,0.10230698,86155.0,86137.0,0.013895]
[1766008881971,0.0907,86155.0,86137.0,0.013895]
[1766008882187,0.0907,86154.0,86137.0,0.013895]
[1766008882396,0.0907,86149.0,86135.0,0.00025622]
[1766008882601,0.13984,86143.0,86130.0,0.01836]
[1766008882783,0.0907,86144.0,86130.0,0.01836]
[1766008882784,0.51433,86141.0,86130.0,0.01836]
[1766008883852,0.51433,86141.0,86130.0,0.01936]
[1766008884129,0.51433,86141.0,86130.0,0.01836]
[1766008885443,0.51433,86141.0,86130.0,0.01936]
[1766008886428,0.13984,86140.0,86130.0,0.01936]
[1766008886624,0.51433,86138.0,86130.0,0.01936]
[1766008886928,0.13984,86138.0,86130.0,0.01936]
[1766008888311,0.13984,86138.0,86130.0,0.01836]
[1766008893559,0.51433,86136.0,86130.0,0.01836]
[1766008893854,0.37449,86136.0,86130.0,0.01836]
[1766008894063,0.13984,86137.0,86130.0,0.01836]
[1766008897760,0.13984,86137.0,86124.0,0.013895]
[1766008897989,0.13984,86131.0,86114.0,0.03490773]
[1766008898222,0.13984,86125.0,86114.0,0.03490773]
[1766008898448,0.13984,86125.0,86110.0,0.35968]
[1766008898648,0.13984,86125.0,86110.0,0.36128831]
[1766008899096,0.13984,86125.0,86110.0,0.36134053]
[1766008900804,0.4701,86129.0,86116.0,0.36218]
[1766008901021,0.12615,86128.0,86115.0,0.013895]
[1766008901430,0.12615,86128.0,86115.0,0.376075]
[1766008902672,0.34395,86125.0,86110.0,0.00166053]
[1766008902878,0.4701,86122.0,86114.0,0.013895]
[1766008903684,0.12615,86122.0,86114.0,0.013895]
[1766008903886,0.63224011,86130.0,86115.0,0.36218]
[1766008904087,0.34395,86129.0,86115.0,0.36218]
[1766008904441,0.4701,86128.0,86115.0,0.36218]
[1766008904992,0.12615,86128.0,86115.0,0.36218]
[1766008905197,0.4701,86128.0,86127.0,0.00025627]
[1766008911113,0.09703294,86128.0,86127.0,0.00025627]
[1766008912392,0.09703294,86128.0,86110.0,0.00166053]
[1766008912393,0.09703294,86128.0,86110.0,2.22e-06]
[1766008912394,0.01161237,86115.0,86110.0,2.22e-06]
[1766008912605,0.0907,86113.0,86110.0,2.22e-06]
[1766008912816,0.0907,86112.0,86110.0,2.22e-06]
[1766008913017,0.21685,86111.0,86110.0,2.22e-06]
[1766008913179,0.5608,86111.0,86110.0,2.22e-06]
[1766008913381,0.79305836,86111.0,86110.0,2.22e-06]
[1766008913580,0.5608,86111.0,86110.0,2.22e-06]
[1766008913995,0.5608,86111.0,86110.0,0.00100222]
[1766008914200,0.5608,86111.0,86110.0,2.22e-06]
[1766008915610,0.43465,86111.0,86110.0,2.22e-06]
[1766008916021,0.0907,86111.0,86110.0,2.22e-06]
[1766008916226,0.32295836,86111.0,86110.0,2.22e-06]
[1766008916626,0.24386605,86113.0,86091.0,0.01836]
[1766008916627,0.12615,86101.0,86091.0,0.01836]
[1766008916834,0.12615,86101.0,86091.0,0.00037559]
[1766008916835,0.12615,86100.0,86091.0,0.00037559]
[1766008917072,0.01161453,86099.0,86091.0,0.00037559]
[1766008917226,0.12615,86100.0,86091.0,0.00037559]
[1766008917227,0.1377644,86100.0,86091.0,0.00037559]
[1766008917431,0.12615,86099.0,86091.0,0.00037559]
[1766008918063,0.0907,86106.0,86092.0,0.40027156]
[1766008918283,0.01161291,86111.0,86092.0,0.40027156]
[1766008918484,0.12615,86108.0,86105.0,0.00070493]
[1766008918646,0.21685,86105.0,86092.0,0.40027156]
[1766008919776,0.21685,86105.0,86092.0,0.36218]
[1766008920095,0.0907,86105.0,86092.0,0.36218]
[1766008920327,0.0907,86105.0,86091.0,0.00037559]
[1766008920328,0.12615,86100.0,86091.0,0.00037559]
[1766008921080,0.12615,86099.0,86091.0,0.00037559]
[1766008921487,0.12615,86099.0,86086.0,0.01836]
[1766008921488,0.24390243,86100.0,86086.0,0.01836]
[1766008921670,0.12615,86096.0,86086.0,0.01836]
[1766008921874,0.4701,86094.0,86086.0,0.01836]
[1766008923906,0.4701,86094.0,86086.0,0.01936]
[1766008924304,0.4701,86094.0,86093.0,0.00108959]
[1766008925150,0.4701,86094.0,86086.0,0.01836]
[1766008925151,0.0907,86092.0,86086.0,0.01836]
[1766008925937,0.12615,86089.0,86086.0,0.01836]
[1766008926140,0.12615,86089.0,86080.0,0.05]
[1766008926141,0.64385505,86096.0,86080.0,0.05]
[1766008926142,0.12615,86086.0,86080.0,0.05]
[1766008927664,0.12615,86083.0,86080.0,0.052]
[1766008927873,0.21685,86089.0,86080.0,0.052]
[1766008929315,0.12615,86088.0,86080.0,0.052]
[1766008929551,0.12615,86086.0,86080.0,0.052]
[1766008929722,0.12615,86086.0,86080.0,0.05]
[1766008930080,0.12615,86086.0,86080.0,0.051]
[1766008930281,0.12615,86086.0,86080.0,0.05]
[1766008930736,0.12615,86086.0,86085.0,0.00025645]
[1766008932903,0.49156,86086.0,86085.0,0.00025645]
[1766008933444,0.49156,86086.0,86085.0,0.00225645]
[1766008935102,0.12615,86086.0,86085.0,0.00225645]
[1766008935302,0.49156,86086.0,86085.0,0.00225645]
[1766008936991,0.36541,86087.0,86080.0,0.05]
[1766008937190,0.13162,86084.0,86072.0,0.013895]
[1766008937989,0.63224011,86082.0,86072.0,0.013895]
[1766008938166,0.63224011,86082.0,86072.0,0.394475]
[1766008938630,0.63224011,86082.0,86072.0,0.117925]
[1766008938800,0.63224011,86082.0,86073.0,0.38058]
[1766008939011,0.13162,86084.0,86073.0,0.38058]
[1766008939208,0.63224011,86083.0,86073.0,0.108]
[1766008939534,0.13162,86084.0,86074.0,0.38058]
[1766008941523,0.0907,86089.0,86074.0,0.38218831]
[1766008942711,0.0907,86089.0,86077.0,0.00025648]
[1766008943114,0.0917,86089.0,86077.0,0.00025648]
[1766008943515,0.36541,86088.0,86077.0,0.00025648]
[1766008943712,0.13162,86087.0,86077.0,0.00025648]
[1766008946603,0.0907,86096.0,86085.0,0.013895]
[1766008946795,0.72929897,86109.0,86085.0,0.013895]
[1766008946796,0.03492618,86102.0,86091.0,0.38058]
[1766008947121,0.02895151,86100.0,86094.0,0.38058]
[1766008947458,0.00037472,86100.0,86092.0,0.38058]
[1766008947658,0.00037472,86100.0,86094.0,0.38058]
[1766008948478,2.38e-06,86105.0,86095.0,0.13808]
[1766008948680,0.16654524,86108.0,86095.0,0.13819245]
[1766008948899,0.16010986,86108.0,86095.0,0.00172076]
[1766008949358,0.16010986,86108.0,86097.0,0.51866]
[1766008949502,0.02848986,86108.0,86098.0,0.05203808]
[1766008949710,0.11579631,86109.0,86098.0,0.05203808]
[1766008950106,0.001,86108.0,86098.0,0.05203808]
[1766008950517,0.14509368,86109.0,86100.0,0.38058]
[1766008950715,0.0907,86107.0,86098.0,0.05203808]
[1766008950917,0.0907,86107.0,86095.0,0.38230076]
[1766008953871,0.0907,86107.0,86097.0,0.38058]
[1766008954409,0.13162,86107.0,86097.0,0.38058]
[1766008957044,0.49703,86107.0,86096.0,0.13808]
[1766008957241,0.11999737,86109.0,86095.0,0.00172076]
[1766008957483,0.22232,86107.0,86095.0,0.00172076]
[1766008958993,0.22232,86107.0,86085.0,0.032255]
[1766008958994,0.0907,86103.0,86085.0,0.032255]
[1766008959170,0.13162,86098.0,86085.0,0.03262972]
[1766008959389,0.45611,86099.0,86085.0,0.41320972]
[1766008959390,0.22232,86097.0,86085.0,0.41320972]
[1766008959774,0.23226983,86107.0,86085.0,0.41320972]
[1766008959775,0.00138581,86113.0,86101.0,0.06557]
[1766008959991,0.02844746,86122.0,86113.0,0.38058]
[1766008960229,0.13162,86124.0,86113.0,0.38058]
[1766008960428,0.16124929,86124.0,86113.0,0.38058]
[1766008960756,0.00025629,86121.0,86113.0,0.38058]
[1766008961243,0.00025629,86121.0,86113.0,0.38064094]
[1766008962168,0.00025629,86121.0,86113.0,0.45795153]
[1766008962453,0.00025629,86121.0,86113.0,0.45695153]
[1766008962674,0.00025629,86121.0,86113.0,0.45795153]
[1766008963023,0.00025629,86121.0,86113.0,0.45695153]
[1766008963415,0.0018684,86121.0,86113.0,6.094e-05]
[1766008963627,0.1372084,86121.0,86113.0,6.094e-05]
[1766008963831,0.0907,86119.0,86113.0,6.094e-05]
[1766008964257,0.0907,86119.0,86113.0,0.00106094]
[1766008964475,0.0907,86119.0,86113.0,6.094e-05]
[1766008964816,0.0907,86119.0,86113.0,0.00106094]
[1766008965075,0.0907,86119.0,86113.0,6.094e-05]
[1766008965494,0.0907,86119.0,86113.0,0.00106094]
[1766008965717,0.0907,86119.0,86113.0,6.094e-05]
[1766008966123,0.0907,86119.0,86113.0,0.00106094]
[1766008967121,0.0907,86119.0,86113.0,6.094e-05]
[1766008967503,0.0907,86119.0,86113.0,0.00106094]
[1766008967706,0.0907,86119.0,86113.0,6.094e-05]
[1766008968074,0.0907,86119.0,86113.0,0.00106094]
[1766008968216,0.0018684,86121.0,86113.0,0.00106094]
[1766008968418,0.13534,86119.0,86113.0,0.00106094]
[1766008968765,0.13534,86117.0,86113.0,0.00106094]
[1766008970348,0.0907,86116.0,86113.0,6.094e-05]
[1766008970556,0.61143,86114.0,86113.0,0.00106094]
[1766008970776,0.22604,86114.0,86113.0,6.094e-05]
[1766008971068,0.22604,86114.0,86113.0,0.00106094]
[1766008971477,0.22604,86114.0,86113.0,6.094e-05]
[1766008971732,0.22604,86114.0,86113.0,0.00106094]
[1766008971937,0.0018684,86121.0,86102.0,0.3604]
[1766008972222,0.47609,86116.0,86102.0,0.3605126]
[1766008972434,0.38539,86111.0,86102.0,0.0001126]
[1766008972647,0.0907,86115.0,86102.0,0.3605126]
[1766008972861,0.0907,86115.0,86105.0,0.04909]
[1766008973064,0.0907,86115.0,86108.0,0.40949]
[1766008973917,0.0907,86118.0,86108.0,0.40949]
[1766008974476,0.22604,86118.0,86108.0,0.40949]
[1766008975355,0.0018684,86121.0,86108.0,0.40949]
[1766008976492,0.0018684,86121.0,86108.0,0.3604]
[1766008976666,0.0018684,86121.0,86108.0,0.40811]
[1766008977247,0.1372084,86121.0,86108.0,0.40811]
[1766008978776,0.5225984,86121.0,86108.0,0.40811]
[1766008978980,0.5225984,86121.0,86102.0,0.0001126]
[1766008978981,0.0018684,86121.0,86111.0,0.04635]
[1766008979230,0.0018684,86121.0,86112.0,0.40675]
[1766008979473,0.22604,86120.0,86113.0,0.013895]
[1766008979690,0.0907,86120.0,86114.0,0.04635]
[1766008979906,0.0907,86120.0,86113.0,0.013895]
[1766008979907,0.0907,86120.0,86117.0,0.3604]
[1766008980173,0.0907,86120.0,86102.0,0.0001126]
[1766008980174,0.0907,86120.0,86106.0,0.3604]
[1766008980398,0.0907,86120.0,86102.0,0.0001126]
[1766008980399,0.38539,86116.0,86102.0,0.0001126]
[1766008981545,0.01161197,86118.0,86102.0,0.0001126]
[1766008981546,0.38539,86111.0,86102.0,0.0001126]
[1766008982275,0.13534,86110.0,86102.0,0.0001126]
[1766008982460,0.13534,86109.0,86102.0,0.0001126]
[1766008983079,0.38539,86113.0,86102.0,0.0001126]
[1766008983289,0.13534,86110.0,86102.0,0.0001126]
[1766008983859,0.13534,86109.0,86102.0,0.0001126]
[1766008984753,0.38539,86108.0,86102.0,0.0001126]
[1766008988615,0.13534,86110.0,86102.0,0.0001126]
[1766008989041,0.52073,86110.0,86102.0,0.0001126]
[1766008989617,0.001,86108.0,86102.0,0.0001126]
[1766008989816,0.52073,86110.0,86102.0,0.0001126]
[1766008990023,0.38539,86110.0,86102.0,0.0001126]
[1766008990224,0.1339,86109.0,86102.0,0.0001126]
[1766008991757,0.001,86108.0,86102.0,0.0001126]
[1766008992164,0.1339,86109.0,86102.0,0.0001126]
[1766008993528,0.01836,86114.0,86102.0,0.0001126]
[1766008993929,0.37491,86111.0,86102.0,0.0001126]
[1766008994136,0.23388,86110.0,86102.0,0.0001126]
[1766008994335,0.63390554,86110.0,86102.0,0.0001126]
[1766008994535,0.60879,86110.0,86102.0,0.0001126]
[1766008996945,0.46561,86110.0,86102.0,0.0001126]
[1766008997151,0.0907,86108.0,86102.0,0.0001126]
[1766008998796,0.14318,86109.0,86102.0,0.0001126]
[1766008998797,0.0907,86109.0,86102.0,0.0001126]
[1766008998996,0.0907,86107.0,86102.0,0.0001126]
[1766008999198,0.14318,86108.0,86102.0,0.0001126]
[1766008999433,0.0907,86109.0,86102.0,0.0001126]
[1766009000026,0.001,86108.0,86102.0,0.0001126]
[1766009000238,0.1158182,86112.0,86102.0,0.0001126]
[1766009000420,0.23388,86112.0,86102.0,0.0001126]
[1766009000622,0.2589982,86112.0,86102.0,0.0001126]
[1766009001105,0.60879,86112.0,86102.0,0.0001126]
[1766009001379,0.0251182,86111.0,86102.0,0.0001126]
[1766009002360,0.0907,86110.0,86102.0,0.0001126]
[1766009008936,0.0907,86110.0,86102.0,0.3632926]
[1766009009304,0.0907,86110.0,86102.0,0.3622926]
[1766009009502,0.0907,86110.0,86102.0,0.3632926]
[1766009010858,0.0907,86110.0,86102.0,0.3622926]
[1766009011065,0.0907,86110.0,86102.0,0.3632926]
[1766009011623,0.06787351,86111.0,86102.0,0.3632926]
[1766009011958,0.06787351,86111.0,86102.0,0.3622926]
[1766009012106,0.06787351,86111.0,86102.0,0.3632926]
[1766009012327,0.06787351,86111.0,86102.0,0.3622926]
[1766009015400,0.15857351,86111.0,86102.0,0.3622926]
[1766009018424,0.0907,86111.0,86103.0,0.36218]
[1766009018731,0.54362791,86112.0,86103.0,0.36218]
[1766009019836,0.01836,86114.0,86103.0,0.36218]
[1766009019990,0.01836,86114.0,86104.0,0.49436]
[1766009019991,0.63269927,86113.0,86104.0,0.49436]
[1766009020426,0.63269927,86113.0,86102.0,0.0001126]
[1766009020427,0.37491,86118.0,86102.0,0.0001126]
[1766009020930,0.53341,86115.0,86102.0,0.0001126]
[1766009021128,0.02513084,86118.0,86106.0,0.3981]
[1766009021355,0.13419084,86119.0,86106.0,0.3981]
[1766009021565,0.13419084,86119.0,86106.0,0.4045]
[1766009021904,0.11583084,86119.0,86106.0,0.4045]
[1766009023089,0.11583084,86119.0,86107.0,0.02994109]
[1766009023290,0.0018684,86121.0,86110.0,0.00894]
[1766009023570,0.53341,86129.0,86113.0,0.3981]
[1766009023898,0.63269927,86123.0,86113.0,0.3981]
[1766009024254,0.001,86119.0,86113.0,0.3981]
[1766009024436,0.63269927,86123.0,86114.0,0.3981]
[1766009024644,0.63269927,86123.0,86113.0,0.00161287]
[1766009025509,0.0907,86122.0,86113.0,0.00161287]
[1766009029493,0.0907,86127.0,86113.0,0.39971287]
[1766009029681,0.0907,86122.0,86113.0,0.39971287]
[1766009029881,0.0907,86122.0,86113.0,0.00161287]
[1766009030081,0.62411,86122.0,86113.0,0.00161287]
[1766009030894,0.62411,86122.0,86107.0,0.01836]
[1766009030895,0.53341,86115.0,86107.0,0.01836]
[1766009031082,0.13808,86115.0,86107.0,0.01836]
[1766009033538,0.13808,86115.0,86107.0,0.01936]
[1766009034787,0.13808,86115.0,86107.0,0.01836]
[1766009035556,0.0907,86117.0,86107.0,0.01836]
[1766009035910,0.13808,86115.0,86107.0,0.01836]
[1766009036109,0.13808,86115.0,86107.0,0.01936]
[1766009036230,0.13808,86115.0,86107.0,0.01836]
[1766009039333,0.02511662,86116.0,86107.0,0.01836]
[1766009039534,0.0907,86117.0,86107.0,0.01836]
[1766009039733,0.11581662,86117.0,86107.0,0.01836]
[1766009040517,0.0907,86117.0,86107.0,0.01836]
[1766009040711,0.11581662,86117.0,86107.0,0.01836]
[1766009042047,0.02511662,86117.0,86107.0,0.41646]
[1766009042253,0.0907,86119.0,86107.0,0.41646]
[1766009042455,0.11581662,86119.0,86107.0,0.41807287]
[1766009042667,0.0907,86119.0,86107.0,0.41807287]
[1766009043288,0.02511662,86122.0,86107.0,0.41807287]
[1766009043289,0.11581662,86122.0,86107.0,0.41807287]
[1766009043646,0.0907,86122.0,86107.0,0.41807287]
[1766009044266,0.11581662,86124.0,86107.0,0.41807287]
[1766009044866,0.0907,86124.0,86107.0,0.41807287]
[1766009046472,0.14721256,86128.0,86107.0,0.41807287]
[1766009046690,0.03139594,86128.0,86107.0,0.41807287]
[1766009046881,0.0907,86123.0,86107.0,0.46128092]
[1766009049323,0.0907,86122.0,86107.0,0.46128092]
[1766009051044,0.42044662,86123.0,86107.0,0.46128092]
[1766009051045,0.02511662,86123.0,86107.0,0.46128092]
[1766009051224,0.0907,86126.0,86107.0,0.46128092]
[1766009051629,0.0907,86124.0,86107.0,0.46128092]
[1766009051835,0.0907,86124.0,86109.0,0.39637]
[1766009052035,0.0907,86124.0,86109.0,0.39798287]
[1766009052877,0.0907,86119.0,86109.0,0.39798287]
[1766009053234,0.11581662,86119.0,86109.0,0.39798287]
[1766009056547,0.14403,86126.0,86110.0,0.39214]
[1766009056730,0.14403,86126.0,86119.0,0.001144]
[1766009056885,0.14403,86126.0,86114.0,0.39214]
[1766009058553,0.0907,86125.0,86114.0,0.39214]
[1766009058767,0.0907,86123.0,86114.0,0.39214]
[1766009060031,0.54101733,86124.0,86114.0,0.39375287]
[1766009060942,0.54101733,86124.0,86115.0,0.04349642]
[1766009061836,0.14403,86127.0,86115.0,0.04349642]
[1766009062055,0.54977,86127.0,86115.0,0.04349642]
[1766009062404,0.14403,86126.0,86115.0,0.04349642]
[1766009062603,0.54977,86126.0,86114.0,0.00161287]
[1766009066560,0.40574,86134.0,86126.0,0.001144]
[1766009066786,0.43425322,86134.0,86126.0,0.001144]
[1766009066967,0.43425322,86134.0,86120.0,0.40689]
[1766009067170,0.43425322,86134.0,86120.0,0.44957629]
[1766009067363,0.57828322,86134.0,86120.0,0.44957629]
[1766009067623,0.14403,86133.0,86120.0,0.40689]
[1766009067782,0.63269927,86130.0,86120.0,0.40689]
[1766009068378,0.63269927,86130.0,86119.0,0.01836]
[1766009068577,0.54977,86129.0,86119.0,0.01836]
[1766009068876,0.63269927,86130.0,86119.0,0.42365]
[1766009069074,0.14403,86128.0,86119.0,0.01836]
[1766009072716,0.14403,86128.0,86114.0,0.40690287]
[1766009072941,0.54977,86126.0,86114.0,0.00161287]
[1766009073135,0.54977,86126.0,86114.0,0.03652795]
[1766009073342,0.54977,86126.0,86114.0,0.00161287]
[1766009074354,0.0907,86125.0,86114.0,0.00161287]
[1766009074586,0.09095625,86129.0,86114.0,0.00161287]
[1766009074720,0.54977,86123.0,86114.0,0.00161287]
[1766009076124,0.54977,86123.0,86114.0,0.00261287]
[1766009077939,0.14403,86123.0,86114.0,0.00261287]
[1766009078343,0.0907,86127.0,86114.0,0.00161287]
[1766009078547,0.0907,86127.0,86114.0,0.39943287]
[1766009078795,0.64047,86127.0,86114.0,0.39943287]
[1766009079021,0.24380122,86136.0,86112.0,0.05327508]
[1766009079022,0.40574,86148.0,86127.0,0.219204]
[1766009079321,0.40574,86148.0,86129.0,0.21806]
[1766009079511,0.40574,86148.0,86129.0,0.21967287]
[1766009079713,0.0349098,86147.0,86129.0,0.21967287]
[1766009079914,0.0349098,86147.0,86129.0,0.25458267]
[1766009080115,0.01821751,86143.0,86129.0,0.25458267]
[1766009080341,0.01821751,86143.0,86132.0,0.2319]